Workbook

Sheet Instructions
A1: Cost Plan Workbook
A2: Instructions
A5: UC Component Cost Summary
B7: Insert Project Title in Cell A1.
B9: Insert Plant Account number in Cell E1.
B11: Insert Date of Estimate in Cell E2.
B13: Leave the CCCI in Cell E4 as XXXX, until information is provided by UCOP.
B15: Insert Overall Gross Square Feet (OGSF) for project in Cell G6.
B17: In the shaded cells of Column E, enter construction cost from the cost estimate in thousands-of-dollars ($,000).
B19: Complete the shaded inflation calculations using project schedule and estimated percentages for annual inflation.
B21: Specify the design contingency assumptions incorporated in the base component costs, as a percentage in Cell B64.
A24: Cost Plan Summary and P or W Submit. Cost Plan Summ
B26: These forms are completed automatically with the information provided in the Component Cost Summary worksheet and require no input.
A29: Cost Conversion to CIB Format
B31: In the shaded cells of Columns D, F, H, and J, enter the construction cost for those items that are outside the construction contract and will be completed by the campus (i.e., telecommunications, builder’s risk insurance, etc.). Provide the description of the cost in Column A.
B33: The totals in Row 32 should match Lines 0, 1, 2, and 4 on your CIB.
A36: Area and Control Quantities
B38: Insert in the shaded areas of Column D the unit values of key control quantities (i.e., enclosed area, volume, elevators, etc.). This information needs to be provided either in this worksheet or in the detailed cost estimate.

Sheet UC Component Cost Summary
A1: <Project Title> | C1: Plant Account Number: | E1: 999999
A2: <Bid Package> | D2: Date of Estimate: | E2: 1955-05-05
C3: Budget Year: | E3: 2007-08
A4: <Campus> | C4: CCCI of Budget Year: | E4: XXXX
F6: OGSF: | G6: 100000
A7: UC COMPONENT COST SUMMARY WORKSHEET
A8: P or W Submittal - State Funded Projects | D8: Construction Cost with | F8: Construction Cost with markups
D9: markups broken out | F9: incl. escalation rolled up
D10: $/OGSF | E10: Cost ($x1,000) | F10: $/OGSF | G10: Cost ($x1,000)
A11: 1. Foundations | D11: =(E11*1000)/$G$6 -> 20 | E11: 2000 | F11: =(G11*1000)/$G$6 -> 26.193024 | G11: =E11*(1+$C$42)*(1+$C$43)*(1+($B$49*$C$49))*(1+($B$57*$C$57))*(1+($B$59*$C$59)) -> 2619.3024
A12: 2. Vertical Structure | D12: =(E12*1000)/$G$6 -> 10 | E12: 1000 | F12: 13.096512 | G12: 1309.6512
A13: 3. Floor & Roof Structures | D13: =(E13*1000)/$G$6 -> 10 | E13: 1000 | F13: 13.096512 | G13: 1309.6512
A14: 4. Exterior Cladding | D14: =(E14*1000)/$G$6 -> 10 | E14: 1000 | F14: 13.096512 | G14: 1309.6512
A15: 5. Roofing & Waterproofing | D15: =(E15*1000)/$G$6 -> 10 | E15: 1000 | F15: 13.096512 | G15: 1309.6512
A16: Shell (1-5) | D16: =SUM(D11:D15) -> 60 | E16: =SUM(E11:E15) -> 6000 | F16: 78.579072 | G16: 7857.9072
A18: 6. Interior Partitions, Doors & Glazing | D18: =(E18*1000)/$G$6 -> 10 | E18: 1000 | F18: =(G18*1000)/$G$6 -> 13.096512 | G18: =E18*(1+$C$42)*(1+$C$43)*(1+($B$49*$C$49))*(1+($B$57*$C$57))*(1+($B$59*$C$59)) -> 1309.6512
A19: 7. Floor, Wall & Ceiling Finishes | D19: =(E19*1000)/$G$6 -> 10 | E19: 1000 | F19: =(G19*1000)/$G$6 -> 13.096512 | G19: =E19*(1+$C$42)*(1+$C$43)*(1+($B$49*$C$49))*(1+($B$57*$C$57))*(1+($B$59*$C$59)) -> 1309.6512
A20: Interiors (6-7) | D20: =SUM(D18:D19) -> 20 | E20: =SUM(E18:E19) -> 2000 | F20: =(G20*1000)/$G$6 -> 26.193024 | G20: =E20*(1+$C$42)*(1+$C$43)*(1+($B$49*$C$49))*(1+($B$57*$C$57))*(1+($B$59*$C$59)) -> 2619.3024
A22: 8. Function Equipment & Specialties | D22: =(E22*1000)/$G$6 -> 10 | E22: 1000 | F22: =(G22*1000)/$G$6 -> 13.096512 | G22: =E22*(1+$C$42)*(1+$C$43)*(1+($B$49*$C$49))*(1+($B$57*$C$57))*(1+($B$59*$C$59)) -> 1309.6512
A23: 9. Stairs & Vertical Transportation | D23: =(E23*1000)/$G$6 -> 10 | E23: 1000 | F23: =(G23*1000)/$G$6 -> 13.096512 | G23: =E23*(1+$C$42)*(1+$C$43)*(1+($B$49*$C$49))*(1+($B$57*$C$57))*(1+($B$59*$C$59)) -> 1309.6512
A24: Equipment &Vertical Transportation | D24: =SUM(D22:D23) -> 20 | E24: =SUM(E22:E23) -> 2000 | F24: =(G24*1000)/$G$6 -> 26.193024 | G24: =E24*(1+$C$42)*(1+$C$43)*(1+($B$49*$C$49))*(1+($B$57*$C$57))*(1+($B$59*$C$59)) -> 2619.3024
A26: 10. Plumbing Systems | D26: =(E26*1000)/$G$6 -> 10 | E26: 1000 | F26: =(G26*1000)/$G$6 -> 13.096512 | G26: =E26*(1+$C$42)*(1+$C$43)*(1+($B$49*$C$49))*(1+($B$57*$C$57))*(1+($B$59*$C$59)) -> 1309.6512
A27: 1 1. Heating, Ventilating & Air Conditioning | D27: =(E27*1000)/$G$6 -> 10 | E27: 1000 | F27: =(G27*1000)/$G$6 -> 13.096512 | G27: =E27*(1+$C$42)*(1+$C$43)*(1+($B$49*$C$49))*(1+($B$57*$C$57))*(1+($B$59*$C$59)) -> 1309.6512
A28: 12. Electric Lighting, Power & Communications | D28: =(E28*1000)/$G$6 -> 10 | E28: 1000 | F28: =(G28*1000)/$G$6 -> 13.096512 | G28: =E28*(1+$C$42)*(1+$C$43)*(1+($B$49*$C$49))*(1+($B$57*$C$57))*(1+($B$59*$C$59)) -> 1309.6512
A29: 13. Fire Protection Systems | D29: =(E29*1000)/$G$6 -> 10 | E29: 1000 | F29: =(G29*1000)/$G$6 -> 13.096512 | G29: =E29*(1+$C$42)*(1+$C$43)*(1+($B$49*$C$49))*(1+($B$57*$C$57))*(1+($B$59*$C$59)) -> 1309.6512
A30: Mechanical & Electrical | D30: =SUM(D26:D29) -> 40 | E30: =SUM(E26:E29) -> 4000 | F30: =(G30*1000)/$G$6 -> 52.386048 | G30: =E30*(1+$C$42)*(1+$C$43)*(1+($B$49*$C$49))*(1+($B$57*$C$57))*(1+($B$59*$C$59)) -> 5238.6048
A32: Total Building Construction (1-13) | B32: (Sub 1) | D32: =D16+D20+D24+D30 -> 140 | E32: =E16+E20+E24+E30 -> 14000 | F32: =F16+F20+F24+F30 -> 183.351168 | G32: =G16+G20+G24+G30 -> 18335.1168
A34: 14. Site Preparation & Demolition | B34: (Sub 0) | D34: =(E34*1000)/$G$6 -> 10 | E34: 1000 | F34: =(G34*1000)/$G$6 -> 13.096512 | G34: =E34*(1+$C$42)*(1+$C$43)*(1+($B$49*$C$49))*(1+($B$57*$C$57))*(1+($B$59*$C$59)) -> 1309.6512
A35: 15. Site Paving, Structures & Landscaping | B35: (Sub 4) | D35: =(E35*1000)/$G$6 -> 15 | E35: 1500 | F35: =(G35*1000)/$G$6 -> 19.644768 | G35: =E35*(1+$C$42)*(1+$C$43)*(1+($B$49*$C$49))*(1+($B$57*$C$57))*(1+($B$59*$C$59)) -> 1964.4768
A36: 16. Utilities on Site | B36: (Sub 2) | D36: =(E36*1000)/$G$6 -> 25 | E36: 2500 | F36: =(G36*1000)/$G$6 -> 32.74128 | G36: =E36*(1+$C$42)*(1+$C$43)*(1+($B$49*$C$49))*(1+($B$57*$C$57))*(1+($B$59*$C$59)) -> 3274.128
A38: Total Site Construction (14-16) | D38: =SUM(D34:D36) -> 50 | E38: =SUM(E34:E36) -> 5000 | F38: =(G38*1000)/$G$6 -> 65.48256 | G38: =SUM(G34:G36) -> 6548.256
A40: TOTAL BUILDING & SITE (1-16)* | D40: =D32+D38 -> 190 | E40: =E32+E38 -> 19000 | F40: =(G40*1000)/$G$6 -> 248.833728 | G40: =G32+G38 -> 24883.3728
A42: General Conditions | C42: 0.08 | D42: =(E42*1000)/$G$6 -> 15.2 | E42: =E40*C42 -> 1520
A43: Contractor's Overhead & Profit or Fee | C43: 0.04 | D43: =(E43*1000)/$G$6 -> 8.208 | E43: =(E40+E42)*C43 -> 820.8
A45: Budget bid price as of date of estimate | D45: =D40+D41+D42+D43 -> 213.408 | E45: =E40+E41+E42+E43 -> 21340.8
A47: Escalation to Start of Budget Year | B47: Years | C47: Annual Inflation
A48: Escalation from date of estimate to July 1
A49: of the Budget Year | B49: 1 | C49: 0.1 | D49: =(E49*1000)/$G$6 -> 21.3408 | E49: =B49*C49*E45 -> 2134.08
A51: Escalation from Budget Year to C Approp. Year
A52: Anticipated CCCI escalation from July 1 of Budget
A53: Yr. to July 1 of C Appropriation Yr. | B53: 2 | C53: 0.05
A54: Anticipated actual escalation from July 1 of Budget
A55: Yr. to July 1 of C Appropriation Yr. | B55: 2 | C55: 0.08
A56: Anticipated difference between CCCI
A57: adjustment and inflation | B57: =B55 -> 2 | C57: =C55-C53 -> 0.03 | D57: =(E57*1000)/$G$6 -> 14.084928 | E57: =B57*C57*(E45+E49) -> 1408.4928
A58: Escalation from July 1 of C Appropriation Yr. to
A59: planned bid date (if any) | B59: 0 | C59: 0.07 | D59: =(E59*1000)/$G$6 -> 0 | E59: =B59*C59*(E45+E49+E57) -> 0
A60: Total Adjustment for escalation | E60: =+E49+E57+E59 -> 3542.5728
A62: ESTIMATED CONSTRUCTION BUDGET | D62: =(E62*1000)/$G$6 -> 248.833728 | E62: =E45+E49+E57+E59 -> 24883.3728
A64: *Above component costs include a design contingency of: | B64: 0
A66: Note - above component costs include escalation to the midpoint of construction.

Sheet Cost Plan Summary
A1: ='UC Component Cost Summary'!A1 -> <Project Title> | C1: Plant Account Number: | E1: ='UC Component Cost Summary'!E1 -> 999999
A2: ='UC Component Cost Summary'!A2 -> <Bid Package> | D2: Date of Estimate: | E2: ='UC Component Cost Summary'!E2 -> 1955-05-05
C3: Budget Year: | E3: =+'UC Component Cost Summary'!E3 -> 2007-08
A4: ='UC Component Cost Summary'!A4 -> <Campus> | D4: CCCI: | E4: =+'UC Component Cost Summary'!E4 -> XXXX
A7: COST PLAN SUMMARY
B9: Construction Cost ($X1,000)
A11: 1. Foundations | C11: ='UC Component Cost Summary'!G11 -> 2619.3024
A12: 2. Vertical Structure | C12: ='UC Component Cost Summary'!G12 -> 1309.6512
A13: 3. Floor & Roof Structures | C13: ='UC Component Cost Summary'!G13 -> 1309.6512
A14: 4. Exterior Cladding | C14: ='UC Component Cost Summary'!G14 -> 1309.6512
A15: 5. Roofing & Waterproofing | C15: ='UC Component Cost Summary'!G15 -> 1309.6512
A16: Shell (1-5) | C16: ='UC Component Cost Summary'!G16 -> 7857.9072
A18: 6. Interior Partitions, Doors & Glazing | C18: ='UC Component Cost Summary'!G18 -> 1309.6512
A19: 7. Floor, Wall & Ceiling Finishes | C19: ='UC Component Cost Summary'!G19 -> 1309.6512
A20: Interiors (6-7) | C20: ='UC Component Cost Summary'!G20 -> 2619.3024
A22: 8. Function Equipment & Specialties | C22: ='UC Component Cost Summary'!G22 -> 1309.6512
A23: 9. Stairs & Vertical Transportation | C23: ='UC Component Cost Summary'!G23 -> 1309.6512
A24: Equipment &Vertical Transportation | C24: ='UC Component Cost Summary'!G24 -> 2619.3024
A26: 10. Plumbing Systems | C26: ='UC Component Cost Summary'!G26 -> 1309.6512
A27: 1 1. Heating, Ventilating & Air Conditioning | C27: ='UC Component Cost Summary'!G27 -> 1309.6512
A28: 12. Electric Lighting, Power & Communications | C28: ='UC Component Cost Summary'!G28 -> 1309.6512
A29: 13. Fire Protection Systems | C29: ='UC Component Cost Summary'!G29 -> 1309.6512
A30: Mechanical & Electrical | C30: ='UC Component Cost Summary'!G30 -> 5238.6048
A32: Total Building Construction (1-13) | B32: (Sub 1) | C32: ='UC Component Cost Summary'!G32 -> 18335.1168
A34: 14. Site Preparation & Demolition | B34: (Sub 0) | C34: ='UC Component Cost Summary'!G34 -> 1309.6512
A35: 15. Site Paving, Structures & Landscaping | B35: (Sub 4) | C35: ='UC Component Cost Summary'!G35 -> 1964.4768
A36: 16. Utilities on Site | B36: (Sub 2) | C36: ='UC Component Cost Summary'!G36 -> 3274.128
A38: Total Site Construction (14-16) | C38: ='UC Component Cost Summary'!G38 -> 6548.256
A40: ESTIMATED CONSTRUCTION BUDGET | C40: ='UC Component Cost Summary'!G40 -> 24883.3728

Sheet P or W Submit. Cost Plan Summ
A1: ='UC Component Cost Summary'!A1 -> <Project Title> | C1: Plant Account Number: | G1: ='UC Component Cost Summary'!E1 -> 999999
A2: ='UC Component Cost Summary'!A2 -> <Bid Package> | C2: Date of Estimate: | G2: ='UC Component Cost Summary'!E2 -> 1955-05-05
C3: Budget Year: | G3: ='UC Component Cost Summary'!E3 -> 2007-08
A4: ='UC Component Cost Summary'!A4 -> <Campus> | C4: CCCI: | G4: ='UC Component Cost Summary'!E4 -> XXXX
A6: COST PLAN SUMMARY
A7: P or W Submittal
B8: Construction Cost ($X1,000)
A10: 1. Foundations | C10: ='UC Component Cost Summary'!E11 -> 2000
A11: 2. Vertical Structure | C11: ='UC Component Cost Summary'!E12 -> 1000
A12: 3. Floor & Roof Structures | C12: ='UC Component Cost Summary'!E13 -> 1000
A13: 4. Exterior Cladding | C13: ='UC Component Cost Summary'!E14 -> 1000
A14: 5. Roofing & Waterproofing | C14: ='UC Component Cost Summary'!E15 -> 1000
A15: Shell (1-5) | C15: ='UC Component Cost Summary'!E16 -> 6000
A17: 6. Interior Partitions, Doors & Glazing | C17: ='UC Component Cost Summary'!E18 -> 1000
A18: 7. Floor, Wall & Ceiling Finishes | C18: ='UC Component Cost Summary'!E19 -> 1000
A19: Interiors (6-7) | C19: ='UC Component Cost Summary'!E20 -> 2000
A21: 8. Function Equipment & Specialties | C21: ='UC Component Cost Summary'!E22 -> 1000
A22: 9. Stairs & Vertical Transportation | C22: ='UC Component Cost Summary'!E23 -> 1000
A23: Equipment &Vertical Transportation | C23: ='UC Component Cost Summary'!E24 -> 2000
A25: 10. Plumbing Systems | C25: ='UC Component Cost Summary'!E26 -> 1000
A26: 1 1. Heating, Ventilating & Air Conditioning | C26: ='UC Component Cost Summary'!E27 -> 1000
A27: 12. Electric Lighting, Power & Communications | C27: ='UC Component Cost Summary'!E28 -> 1000
A28: 13. Fire Protection Systems | C28: ='UC Component Cost Summary'!E29 -> 1000
A29: Mechanical & Electrical | C29: ='UC Component Cost Summary'!E30 -> 4000
F30: CIB lines incl. Markups
A31: Total Building Construction (1-13) | C31: ='UC Component Cost Summary'!E32 -> 14000 | E31: (Sub 1) | F31: =+'UC Component Cost Summary'!G32 -> 18335.1168
A33: 14. Site Preparation & Demolition | C33: ='UC Component Cost Summary'!E34 -> 1000 | E33: (Sub 0) | F33: =+'UC Component Cost Summary'!G34 -> 1309.6512
A34: 15. Site Paving, Structures & Landscaping | C34: ='UC Component Cost Summary'!E35 -> 1500 | E34: (Sub 4) | F34: =+'UC Component Cost Summary'!G35 -> 1964.4768
A35: 16. Utilities on Site | C35: ='UC Component Cost Summary'!E36 -> 2500 | E35: (Sub 2) | F35: =+'UC Component Cost Summary'!G36 -> 3274.128
A37: Total Site Construction (14-16) | C37: ='UC Component Cost Summary'!E38 -> 5000 | F37: =+F33+F34+F35 -> 6548.256
A39: TOTAL BUILDING & SITE (1-16) | C39: ='UC Component Cost Summary'!$E$40 -> 19000 | F39: =+F31+F37 -> 24883.3728
A41: General Conditions | B41: ='UC Component Cost Summary'!$C$42 -> 0.08 | C41: ='UC Component Cost Summary'!$E$42 -> 1520
A42: Contractor's Overhead & Profit or Fee | B42: ='UC Component Cost Summary'!$C$43 -> 0.04 | C42: ='UC Component Cost Summary'!$E$43 -> 820.8
A43: Adjustment for escalation | C43: ='UC Component Cost Summary'!$E$60 -> 3542.5728
A45: ESTIMATED CONSTRUCTION BUDGET | C45: =+C31+C37+C41+C42+C43 -> 24883.3728

Sheet Cost Conversion to CIB Format
A1: ='UC Component Cost Summary'!A1 -> <Project Title> | F1: Plant Account Number: | H1: ='UC Component Cost Summary'!E1 -> 999999
A2: ='UC Component Cost Summary'!A2 -> <Bid Package> | F2: Date of Estimate: | H2: ='UC Component Cost Summary'!E2 -> 1955-05-05
F3: Budget Year: | H3: ='UC Component Cost Summary'!E3 -> 2007-08
A4: ='UC Component Cost Summary'!A4 -> <Campus> | F4: CCCI: | H4: ='UC Component Cost Summary'!E4 -> XXXX
A7: Cost Conversion to CIB Format
B9: Total | D9: Sub 0 | F9: Sub 1 | H9: Sub 2 | J9: Sub 4
A10: Construction Cost Estimate | B10: ='UC Component Cost Summary'!$G$40 -> 24883.3728 | D10: ='UC Component Cost Summary'!$G$34 -> 1309.6512 | F10: ='UC Component Cost Summary'!$G$32 -> 18335.1168 | H10: ='UC Component Cost Summary'!$G$36 -> 3274.128 | J10: ='UC Component Cost Summary'!$G$35 -> 1964.4768
A11: Additional Construction Items not covered
A12: in above Estimate:
A13: <example>Hazardous materials abatement | B13: =SUM(D13:J13) -> 35 | D13: 10 | F13: 25
A14: <example>Telecommunications work by campus | B14: =SUM(D14:J14) -> 75 | F14: 75
A15: <example>Builder's Risk Insurance | B15: =SUM(D15:J15) -> 40 | H15: 40
A16: <etc.> | B16: =SUM(D16:J16) -> 0
B17: =SUM(D17:J17) -> 0
B18: 0
B19: 0
B20: 0
B21: 0
B22: 0
B23: 0
B24: 0
B25: 0
B26: 0
B27: 0
B28: 0
B29: 0
B30: 0
B31: 0
B32: 0
B33: 0
B34: 0
B35: 0
B36: 0
B37: 0
A39: SubTotal - Add. Const. Costs. | B39: =SUM(B13:B37) -> 150 | D39: =SUM(D13:D37) -> 10 | F39: =SUM(F13:F37) -> 100 | H39: =SUM(H13:H37) -> 40 | J39: =SUM(J13:J37) -> 0
A41: TOTAL | B41: =+B39+B10 -> 25033.3728 | D41: =+D39+D10 -> 1319.6512 | F41: =+F39+F10 -> 18435.1168 | H41: =+H39+H10 -> 3314.128 | J41: =+J39+J10 -> 1964.4768
B42: Total | D42: Sub 0 | F42: Sub 1 | H42: Sub 2 | J42: Sub 4

Sheet Areas & Control Quantities
A1: ='UC Component Cost Summary'!A1 -> <Project Title> | B1: ='UC Component Cost Summary'!C1 -> Plant Account Number: | D1: ='UC Component Cost Summary'!E1 -> 999999
A2: =+'UC Component Cost Summary'!A2 -> <Bid Package> | B2: ='UC Component Cost Summary'!D2 -> Date of Estimate: | D2: ='UC Component Cost Summary'!E2 -> 1955-05-05
A3: =+'UC Component Cost Summary'!A3 ->  | B3: ='UC Component Cost Summary'!C3 -> Budget Year: | D3: ='UC Component Cost Summary'!E3 -> 2007-08
A4: ='UC Component Cost Summary'!A4 -> <Campus> | B4: ='UC Component Cost Summary'!C4 -> CCCI of Budget Year: | D4: ='UC Component Cost Summary'!E4 -> XXXX
A6: AREAS & CONTROL QUANTITIES
A9: TOTAL GROSS AREA (ogsf) | D9: 100000
A11: Control Quantities * | F11: Ratio to
F12: Gross Area
A13: Gross Area | D13: 100000 | E13: SF | F13: =+D13/$D$9 -> 1
A14: Enclosed Area | D14: 99111 | E14: SF | F14: 0.99111
A15: Covered-Unenclosed Area | D15: 1778 | E15: SF | F15: 0.01778
A16: Volume | D16: 1200000 | E16: CF | F16: 12
A17: Crawl Space Volume | D17: 0 | E17: CF | F17: 0
A18: Gross Wall Area | D18: 75000 | E18: SF | F18: 0.75
A19: Retaining Wall Area | D19: 0 | E19: SF | F19: 0
A20: Finished Wall Area | D20: 50000 | E20: SF | F20: 0.5
A21: Interstitial Floor Area | B21: Included in OGSF? | C21: Yes or No | D21: 0 | E21: SF | F21: 0
A22: Exterior Windows or Glazing Area | D22: 10000 | E22: SF | F22: 0.1
A23: Roof Area - Flat | D23: 20000 | E23: SF | F23: 0.2
A24: Roof Area - Sloping | D24: 0 | E24: SF | F24: 0
A25: Roof Glazing Area | D25: 0 | E25: SF | F25: 0
A26: Interior Partition Length | D26: 8000 | E26: LF | F26: 0.08
A27: Finished Area | D27: 100000 | E27: SF | F27: 1
A28: Fume Hoods (x 1,000) | D28: 40 | E28: EA | F28: 0.0004
A29: Laboratory Casework (Base, Wall, Standing) | D29: 2000 | E29: LF | F29: 0.02
A30: Elevators (x10,000) | D30: 2 | E30: EA | F30: =+D30/$D$9*10000 -> 0.2
A31: Plumbing Fixtures (x l,000) | D31: 95 | E31: EA | F31: =+D31/$D$9*1000 -> 0.95
A32: Electrical Connected Load (x 1,000) | D32: 4000 | E32: KW | F32: =+D32/$D$9*1000 -> 40
A34: * For preliminary estimates, use best available data and explain on following sheets
A36: =A1 -> <Project Title> | C36: =C1 -> 0
A37: =A4 -> <Campus> | C37: =C4 -> 0
A40: Breakdown of asf by functional use | F40: Ratio toTotal
A41: (define as most appropriate for your project based on the PPG) | F41: Assignable Area
A43: "High Intensity" Wet Lab/Service | D43: 10000 | E43: asf | F43: =+D43/$D$58 -> 0.1666666667
A44: "Low Intensity" Wet Lab/Service | D44: 10000 | E44: asf | F44: =+D44/$D$58 -> 0.1666666667
A45: Generic Dry Lab | D45: 5000 | E45: asf | F45: =+D45/$D$58 -> 0.08333333333
A46: Engineering Lab - complex | D46: 0 | E46: asf
A47: Engineering Lab - simple | D47: 0 | E47: asf
A48: Classroom | D48: 8000 | E48: asf | F48: =+D48/$D$58 -> 0.1333333333
A49: Generic Dry Office/Other | D49: 15000 | E49: asf | F49: 0.25
A50: Other Specialized uses: | D50: 0 | E50: asf | F50: 0
A51: Vivaria | D51: 12000 | E51: asf | F51: 0.2
A52: NMR | D52: 0 | E52: asf | F52: 0
A53: Clean Room | D53: 0 | E53: asf | F53: 0
A54: Library | D54: 0 | E54: asf | F54: 0
A55: Lecture Hall | D55: 0 | E55: asf | F55: 0
A56: ___________ (Other - define) | D56: 0 | E56: asf | F56: =+D56/$D$58 -> 0
A58: TOTAL ASF | D58: =SUM(D43:D56) -> 60000 | E58: asf | F58: =SUM(F43:F56) -> 1
